[Event "*** Titled Tuesday Blitz"]
[Site "Chess.com"]
[Date "2021.02.02"]
[Round "10"]
[White "J36225"]
[Black "Kildepiotr"]
[Result "1-0"]
[WhiteElo "2465"]
[BlackElo "2570"]
[TimeControl "180+1"]
[EndTime "11:55:38 PST"]
[Termination "J36225 won by checkmate"]

1. e4 {[%clk 0:03:00.9]} 1... g6 {[%clk 0:02:58.1]} 2. Nf3 {[%clk 0:02:59.9]}
2... Bg7 {[%clk 0:02:58.5]} 3. Nc3 {[%clk 0:02:58.3]} 3... c6 {[%clk 0:02:58.8]}
4. d4 {[%clk 0:02:56.7]} 4... d6 {[%clk 0:02:58.6]} 5. a4 {[%clk 0:02:56]} 5...
Nf6 {[%clk 0:02:58.5]} 6. h3 {[%clk 0:02:55.4]} 6... O-O {[%clk 0:02:58.4]} 7.
Bc4 {[%clk 0:02:53]} 7... Qc7 {[%clk 0:02:54]} 8. Bf4 {[%clk 0:02:48.8]} 8...
Nfd7 {[%clk 0:02:44.3]} 9. O-O {[%clk 0:02:45.4]} 9... e5 {[%clk 0:02:43.9]} 10.
dxe5 {[%clk 0:02:44.3]} 10... dxe5 {[%clk 0:02:44]} 11. Be3 {[%clk 0:02:42.3]}
11... Nb6 {[%clk 0:02:39.3]} 12. Bb3 {[%clk 0:02:41.5]} 12... a5 {[%clk
0:02:38]} 13. Qe2 {[%clk 0:02:37.5]} 13... N8d7 {[%clk 0:02:32]} 14. Rad1 {[%clk
0:02:36.2]} 14... Nf6 {[%clk 0:02:18.6]} 15. Rd2 {[%clk 0:02:31.3]} 15... Nh5
{[%clk 0:02:12.7]} 16. Rfd1 {[%clk 0:02:30.2]} 16... Nf4 {[%clk 0:02:11.9]} 17.
Bxf4 {[%clk 0:02:29.5]} 17... exf4 {[%clk 0:02:11.6]} 18. Ng5 {[%clk 0:02:22.2]}
18... Be5 {[%clk 0:02:03.7]} 19. Nf3 {[%clk 0:02:05.1]} 19... Be6 {[%clk
0:01:53.1]} 20. Nxe5 {[%clk 0:02:01.1]} 20... Qxe5 {[%clk 0:01:52.3]} 21. Bxe6
{[%clk 0:01:55.2]} 21... fxe6 {[%clk 0:01:44.9]} 22. Qf3 {[%clk 0:01:37.9]}
22... Rf7 {[%clk 0:01:41.7]} 23. b3 {[%clk 0:01:36.6]} 23... Raf8 {[%clk
0:01:38.3]} 24. Ne2 {[%clk 0:01:32.1]} 24... Nc8 {[%clk 0:01:31.1]} 25. Nd4
{[%clk 0:01:21.6]} 25... Ne7 {[%clk 0:01:24.6]} 26. Qd3 {[%clk 0:01:13.2]} 26...
g5 {[%clk 0:01:18.5]} 27. Nf3 {[%clk 0:01:12.5]} 27... Qc5 {[%clk 0:01:16.4]}
28. Qd4 {[%clk 0:01:09.3]} 28... Qxd4 {[%clk 0:01:15.7]} 29. Nxd4 {[%clk
0:01:09.1]} 29... Rf6 {[%clk 0:01:12.6]} 30. Nf3 {[%clk 0:01:09.1]} 30... h6
{[%clk 0:01:11.8]} 31. Rd7 {[%clk 0:01:08.6]} 31... Ng6 {[%clk 0:01:09.3]} 32.
Rxb7 {[%clk 0:01:07.2]} 32... R6f7 {[%clk 0:01:09.6]} 33. Rdd7 {[%clk
0:01:02.3]} 33... Rxd7 {[%clk 0:01:08.9]} 34. Rxd7 {[%clk 0:01:03.2]} 34... Rf7
{[%clk 0:01:09.2]} 35. Rd6 {[%clk 0:01:02.2]} 35... Rc7 {[%clk 0:01:04.3]} 36.
Rxe6 {[%clk 0:01:00.7]} 36... Kf7 {[%clk 0:01:04.5]} 37. Rd6 {[%clk 0:00:57.9]}
37... c5 {[%clk 0:01:04.8]} 38. e5 {[%clk 0:00:56]} 38... c4 {[%clk 0:01:03.6]}
39. Rf6+ {[%clk 0:00:54.9]} 39... Kg7 {[%clk 0:01:03.4]} 40. Rd6 {[%clk
0:00:47.8]} 40... cxb3 {[%clk 0:01:03.1]} 41. cxb3 {[%clk 0:00:48]} 41... Rc3
{[%clk 0:01:03]} 42. Rd7+ {[%clk 0:00:46.4]} 42... Kf8 {[%clk 0:01:02.7]} 43. e6
{[%clk 0:00:45.1]} 43... Rxb3 {[%clk 0:01:01.8]} 44. Nd4 {[%clk 0:00:42.8]}
44... Rb4 {[%clk 0:00:51.1]} 45. Nf5 {[%clk 0:00:40.7]} 45... Re4 {[%clk
0:00:50.8]} 46. Rd8# {[%clk 0:00:39.2]} 1-0

[Event "*** Titled Tuesday Blitz"]
[Site "Chess.com"]
[Date "2021.02.02"]
[Round "10"]
[White "andy_rekt"]
[Black "korkmaz16"]
[Result "0-1"]
[WhiteElo "2238"]
[BlackElo "2390"]
[TimeControl "180+1"]
[EndTime "11:55:38 PST"]
[Termination "korkmaz16 won on time"]

1. d4 {[%clk 0:03:00.9]} 1... d5 {[%clk 0:02:58.9]} 2. c4 {[%clk 0:03:00.9]}
2... e5 {[%clk 0:02:58]} 3. dxe5 {[%clk 0:03:00.6]} 3... d4 {[%clk 0:02:58.3]}
4. Nf3 {[%clk 0:03:01.2]} 4... Nc6 {[%clk 0:02:58.9]} 5. a3 {[%clk 0:03:01.1]}
5... Nge7 {[%clk 0:02:58.7]} 6. e3 {[%clk 0:02:55.4]} 6... Bg4 {[%clk
0:02:53.2]} 7. Be2 {[%clk 0:02:50.5]} 7... dxe3 {[%clk 0:02:42]} 8. Bxe3 {[%clk
0:02:47.3]} 8... Qxd1+ {[%clk 0:02:37.9]} 9. Bxd1 {[%clk 0:02:46.4]} 9... Ng6
{[%clk 0:02:35.5]} 10. O-O {[%clk 0:01:58.1]} 10... O-O-O {[%clk 0:02:32.3]} 11.
Nc3 {[%clk 0:01:52]} 11... Ncxe5 {[%clk 0:02:28.1]} 12. Nxe5 {[%clk 0:01:47.8]}
12... Nxe5 {[%clk 0:02:27.6]} 13. Bf4 {[%clk 0:01:28.6]} 13... Bxd1 {[%clk
0:02:22.7]} 14. Bxe5 {[%clk 0:01:26.3]} 14... Bb3 {[%clk 0:02:18.7]} 15. Nb5
{[%clk 0:01:04.9]} 15... Rd7 {[%clk 0:02:03.8]} 16. Rfc1 {[%clk 0:00:43.6]}
16... a6 {[%clk 0:02:03.1]} 17. Nd4 {[%clk 0:00:21.9]} 17... Ba4 {[%clk
0:02:02.5]} 18. Ne2 {[%clk 0:00:11.9]} 18... f6 {[%clk 0:01:57.5]} 19. Bc3
{[%clk 0:00:11]} 19... Bb3 {[%clk 0:01:45.8]} 20. Bb4 {[%clk 0:00:07.3]} 20...
c5 {[%clk 0:01:40.3]} 21. Bc3 {[%clk 0:00:07]} 21... Bd6 {[%clk 0:01:38.5]} 22.
Ba5 {[%clk 0:00:06.1]} 22... Re8 {[%clk 0:01:33.1]} 23. Ng3 {[%clk 0:00:04.9]}
23... Be5 {[%clk 0:01:17.8]} 24. Bc3 {[%clk 0:00:04]} 24... Bd4 {[%clk
0:01:09.7]} 25. Nf5 {[%clk 0:00:03.2]} 25... g6 {[%clk 0:01:08.2]} 26. Nxd4
{[%clk 0:00:03]} 26... cxd4 {[%clk 0:01:08.3]} 27. Bb4 {[%clk 0:00:03.3]} 27...
Re2 {[%clk 0:01:05.8]} 28. Re1 {[%clk 0:00:02.4]} 28... Rxb2 {[%clk 0:01:01.7]}
29. c5 {[%clk 0:00:01.2]} 29... d3 {[%clk 0:00:59.5]} 30. Reb1 {[%clk
0:00:01.5]} 30... Rxb1+ {[%clk 0:00:47.5]} 31. Rxb1 {[%clk 0:00:02.4]} 31... d2
{[%clk 0:00:47.7]} 0-1

[Event "*** Titled Tuesday Blitz"]
[Site "Chess.com"]
[Date "2021.02.02"]
[Round "10"]
[White "GelmanAlexander"]
[Black "2nd_life"]
[Result "1-0"]
[WhiteElo "2587"]
[BlackElo "2457"]
[TimeControl "180+1"]
[EndTime "11:55:39 PST"]
[Termination "GelmanAlexander won on time"]

1. d4 {[%clk 0:03:00.9]} 1... Nf6 {[%clk 0:02:59.2]} 2. Nc3 {[%clk 0:03:00.3]}
2... e6 {[%clk 0:02:44.2]} 3. Bf4 {[%clk 0:02:59.8]} 3... Bb4 {[%clk 0:02:41.8]}
4. Qd3 {[%clk 0:02:59.2]} 4... b6 {[%clk 0:02:30.7]} 5. O-O-O {[%clk 0:02:47.6]}
5... Ba6 {[%clk 0:02:12.9]} 6. Qf3 {[%clk 0:02:33.2]} 6... Nc6 {[%clk
0:02:09.4]} 7. d5 {[%clk 0:02:04.1]} 7... exd5 {[%clk 0:01:59.4]} 8. Nxd5 {[%clk
0:02:03.8]} 8... Nxd5 {[%clk 0:01:59]} 9. Qxd5 {[%clk 0:01:51.7]} 9... O-O
{[%clk 0:01:54.1]} 10. Nf3 {[%clk 0:01:51.6]} 10... Qf6 {[%clk 0:01:37.8]} 11.
e3 {[%clk 0:01:50.4]} 11... Bxf1 {[%clk 0:01:34]} 12. Rhxf1 {[%clk 0:01:51.3]}
12... Qe6 {[%clk 0:00:56.9]} 13. a3 {[%clk 0:01:32.1]} 13... Be7 {[%clk
0:00:53.3]} 14. Bxc7 {[%clk 0:01:29.8]} 14... Rac8 {[%clk 0:00:42.6]} 15. Qxd7
{[%clk 0:01:01.5]} 15... Qa2 {[%clk 0:00:30.8]} 16. Qxc6 {[%clk 0:00:57.8]}
16... Qa1+ {[%clk 0:00:25.6]} 17. Kd2 {[%clk 0:00:57.7]} 17... Qxb2 {[%clk
0:00:26.5]} 18. Nd4 {[%clk 0:00:31.9]} 18... Qxa3 {[%clk 0:00:19.3]} 19. Qd7
{[%clk 0:00:25.8]} 19... Bb4+ {[%clk 0:00:07.1]} 20. Ke2 {[%clk 0:00:26]} 20...
Bc3 {[%clk 0:00:03.6]} 21. Bd6 {[%clk 0:00:21.9]} 1-0

[Event "*** Titled Tuesday Blitz"]
[Site "Chess.com"]
[Date "2021.02.02"]
[Round "10"]
[White "ljuks68"]
[Black "fish7728"]
[Result "1-0"]
[WhiteElo "2390"]
[BlackElo "2203"]
[TimeControl "180+1"]
[EndTime "11:55:39 PST"]
[Termination "ljuks68 won by resignation"]

1. e4 {[%clk 0:03:00.9]} 1... c5 {[%clk 0:02:59.6]} 2. Nf3 {[%clk 0:03:00.9]}
2... e6 {[%clk 0:03:00]} 3. d4 {[%clk 0:03:01.2]} 3... cxd4 {[%clk 0:03:00.9]}
4. Nxd4 {[%clk 0:03:01.7]} 4... a6 {[%clk 0:03:01.4]} 5. Bd3 {[%clk 0:03:01.2]}
5... Qc7 {[%clk 0:03:01.9]} 6. Qe2 {[%clk 0:03:01.4]} 6... d6 {[%clk 0:03:01.7]}
7. c4 {[%clk 0:03:00.2]} 7... Nf6 {[%clk 0:03:01.2]} 8. Nc3 {[%clk 0:02:59.6]}
8... Be7 {[%clk 0:03:01.6]} 9. O-O {[%clk 0:02:58.3]} 9... O-O {[%clk
0:03:01.5]} 10. Bd2 {[%clk 0:02:58.3]} 10... Nbd7 {[%clk 0:03:01.6]} 11. f4
{[%clk 0:02:57.9]} 11... b6 {[%clk 0:03:01.6]} 12. Rae1 {[%clk 0:02:58]} 12...
Bb7 {[%clk 0:03:01.7]} 13. Kh1 {[%clk 0:02:58.5]} 13... Rac8 {[%clk 0:02:46.8]}
14. b3 {[%clk 0:02:57.5]} 14... Rfe8 {[%clk 0:02:39.7]} 15. e5 {[%clk
0:02:41.9]} 15... dxe5 {[%clk 0:02:40.1]} 16. fxe5 {[%clk 0:02:42.1]} 16... Nxe5
{[%clk 0:02:40.2]} 17. Qxe5 {[%clk 0:02:42.3]} 17... Bd6 {[%clk 0:02:41.1]} 18.
Qg5 {[%clk 0:02:37.7]} 18... Be7 {[%clk 0:02:32.6]} 19. Qh4 {[%clk 0:02:10.2]}
19... Rcd8 {[%clk 0:02:15.8]} 20. Bg5 {[%clk 0:01:52.6]} 20... h6 {[%clk
0:01:38.2]} 21. Bxf6 {[%clk 0:01:47.8]} 21... Bxf6 {[%clk 0:01:39.1]} 22. Rxf6
{[%clk 0:01:47.6]} 22... gxf6 {[%clk 0:01:39.3]} 23. Qxf6 {[%clk 0:01:17.9]}
23... Rxd4 {[%clk 0:00:39.7]} 24. Qxd4 {[%clk 0:01:14.4]} 24... Rd8 {[%clk
0:00:38.2]} 25. Qg4+ {[%clk 0:01:11]} 25... Kf8 {[%clk 0:00:37.7]} 26. Be4
{[%clk 0:01:11]} 26... Qe5 {[%clk 0:00:35.7]} 27. Qf3 {[%clk 0:01:04.9]} 27...
Rd4 {[%clk 0:00:30.5]} 28. Qg3 {[%clk 0:00:42.7]} 28... Qxe4 {[%clk 0:00:04.8]}
29. Nxe4 {[%clk 0:00:40.1]} 29... Bxe4 {[%clk 0:00:04.4]} 1-0

[Event "*** Titled Tuesday Blitz"]
[Site "Chess.com"]
[Date "2021.02.02"]
[Round "10"]
[White "ChessQueen"]
[Black "hansen"]
[Result "0-1"]
[WhiteElo "2736"]
[BlackElo "2917"]
[TimeControl "180+1"]
[EndTime "11:55:40 PST"]
[Termination "hansen won by resignation"]

1. e4 {[%clk 0:03:00.9]} 1... c5 {[%clk 0:02:50.7]} 2. c3 {[%clk 0:03:00.7]}
2... Nf6 {[%clk 0:02:50]} 3. e5 {[%clk 0:03:00.7]} 3... Nd5 {[%clk 0:02:50.4]}
4. d4 {[%clk 0:03:00.5]} 4... cxd4 {[%clk 0:02:49.8]} 5. Nf3 {[%clk 0:03:00.7]}
5... Nc6 {[%clk 0:02:46.2]} 6. cxd4 {[%clk 0:02:59.5]} 6... d6 {[%clk
0:02:46.1]} 7. Bc4 {[%clk 0:02:59.7]} 7... e6 {[%clk 0:02:46.2]} 8. O-O {[%clk
0:02:58.9]} 8... Be7 {[%clk 0:02:45.1]} 9. Qe2 {[%clk 0:02:57.5]} 9... O-O
{[%clk 0:02:44.4]} 10. Rd1 {[%clk 0:02:57.2]} 10... Bd7 {[%clk 0:02:36.2]} 11.
Bd2 {[%clk 0:02:53.8]} 11... Rc8 {[%clk 0:02:28.6]} 12. Nc3 {[%clk 0:02:50.3]}
12... Ncb4 {[%clk 0:02:07.6]} 13. Rac1 {[%clk 0:02:32]} 13... Qb6 {[%clk
0:01:56.6]} 14. Ne4 {[%clk 0:02:22.3]} 14... dxe5 {[%clk 0:01:21]} 15. dxe5
{[%clk 0:02:11.2]} 15... Ba4 {[%clk 0:01:21.2]} 16. b3 {[%clk 0:02:06.1]} 16...
Bc6 {[%clk 0:01:16.5]} 17. a3 {[%clk 0:01:54.1]} 17... Na6 {[%clk 0:01:15.8]}
18. b4 {[%clk 0:01:37.8]} 18... Ba4 {[%clk 0:01:12.8]} 19. Re1 {[%clk
0:01:37.7]} 19... Rfd8 {[%clk 0:01:12.8]} 20. Bg5 {[%clk 0:01:28.7]} 20... Bxg5
{[%clk 0:01:03.9]} 21. Nfxg5 {[%clk 0:01:28.9]} 21... h6 {[%clk 0:01:04]} 22.
Qh5 {[%clk 0:01:12.2]} 22... Rc7 {[%clk 0:01:04.2]} 23. Nf6+ {[%clk 0:00:59.8]}
23... Nxf6 {[%clk 0:00:59.5]} 24. exf6 {[%clk 0:00:59.1]} 24... Qd4 {[%clk
0:00:37.9]} 25. fxg7 {[%clk 0:00:50]} 25... Qxg7 {[%clk 0:00:34.5]} 26. Nf3
{[%clk 0:00:47.3]} 26... Rdc8 {[%clk 0:00:28.1]} 27. Re4 {[%clk 0:00:47.1]}
27... Rxc4 {[%clk 0:00:26.1]} 28. Rce1 {[%clk 0:00:39.3]} 28... Rxe4 {[%clk
0:00:25.3]} 29. Rxe4 {[%clk 0:00:40.2]} 29... Rc1+ {[%clk 0:00:24.3]} 30. Ne1
{[%clk 0:00:40.5]} 30... Bc2 {[%clk 0:00:17.6]} 31. Re3 {[%clk 0:00:40.5]} 31...
Bg6 {[%clk 0:00:17.3]} 32. Qb5 {[%clk 0:00:40.3]} 32... Qa1 {[%clk 0:00:17.1]}
33. Qe2 {[%clk 0:00:39.8]} 33... Nc7 {[%clk 0:00:17.2]} 34. h4 {[%clk
0:00:39.8]} 34... Nd5 {[%clk 0:00:17.8]} 35. Re5 {[%clk 0:00:37.6]} 35... Nf4
{[%clk 0:00:18.1]} 36. Qe3 {[%clk 0:00:38.2]} 36... Nd3 {[%clk 0:00:17.7]} 0-1

[Event "*** Titled Tuesday Blitz"]
[Site "Chess.com"]
[Date "2021.02.02"]
[Round "10"]
[White "ChristopherYoo"]
[Black "Nikolakis2014"]
[Result "1-0"]
[WhiteElo "2845"]
[BlackElo "2639"]
[TimeControl "180+1"]
[EndTime "11:55:41 PST"]
[Termination "ChristopherYoo won by resignation"]

1. e4 {[%clk 0:03:00.9]} 1... c6 {[%clk 0:02:59.9]} 2. Nc3 {[%clk 0:02:59.8]}
2... d5 {[%clk 0:02:59.9]} 3. Qf3 {[%clk 0:02:59.7]} 3... d4 {[%clk 0:02:54.5]}
4. Bc4 {[%clk 0:02:58.4]} 4... Nf6 {[%clk 0:02:50.7]} 5. e5 {[%clk 0:02:51.2]}
5... dxc3 {[%clk 0:02:50.1]} 6. exf6 {[%clk 0:02:50.9]} 6... exf6 {[%clk
0:02:50.2]} 7. bxc3 {[%clk 0:02:45.8]} 7... Bd6 {[%clk 0:02:50]} 8. d4 {[%clk
0:02:45.5]} 8... O-O {[%clk 0:02:49.9]} 9. Ne2 {[%clk 0:02:45.9]} 9... Nd7
{[%clk 0:02:49.3]} 10. O-O {[%clk 0:02:45.5]} 10... Re8 {[%clk 0:02:49.5]} 11.
Bf4 {[%clk 0:02:43.5]} 11... Nf8 {[%clk 0:02:49.4]} 12. Bd3 {[%clk 0:02:41.5]}
12... Ng6 {[%clk 0:02:49]} 13. Bg3 {[%clk 0:02:37.7]} 13... Be6 {[%clk
0:02:40.8]} 14. c4 {[%clk 0:02:37]} 14... Bxg3 {[%clk 0:02:39.4]} 15. hxg3
{[%clk 0:02:33.9]} 15... Qd7 {[%clk 0:02:39.5]} 16. Bxg6 {[%clk 0:02:09.1]}
16... hxg6 {[%clk 0:02:34.7]} 17. Qc3 {[%clk 0:02:03.3]} 17... Rad8 {[%clk
0:02:31.4]} 18. Rfe1 {[%clk 0:01:59.3]} 18... g5 {[%clk 0:02:26.9]} 19. Rad1
{[%clk 0:01:58.4]} 19... b6 {[%clk 0:02:21.6]} 20. a4 {[%clk 0:01:54.1]} 20...
a5 {[%clk 0:02:17.7]} 21. Rb1 {[%clk 0:01:51.4]} 21... Qc7 {[%clk 0:02:16.5]}
22. d5 {[%clk 0:01:47.5]} 22... Bd7 {[%clk 0:02:09.8]} 23. c5 {[%clk 0:01:37.2]}
23... cxd5 {[%clk 0:01:35.8]} 24. cxb6 {[%clk 0:01:34.3]} 24... Qxc3 {[%clk
0:01:22]} 25. Nxc3 {[%clk 0:01:35.2]} 25... Rxe1+ {[%clk 0:01:22.2]} 26. Rxe1
{[%clk 0:01:34.9]} 26... d4 {[%clk 0:01:22.5]} 27. Rd1 {[%clk 0:01:01.7]} 27...
Bc6 {[%clk 0:01:05.5]} 28. Nb5 {[%clk 0:00:44.6]} 28... Bxb5 {[%clk 0:00:46.4]}
29. axb5 {[%clk 0:00:45.5]} 29... Rb8 {[%clk 0:00:25]} 30. Rxd4 {[%clk
0:00:44.1]} 30... Rxb6 {[%clk 0:00:25.2]} 31. c4 {[%clk 0:00:44.3]} 31... Rb8
{[%clk 0:00:23.9]} 32. Rd7 {[%clk 0:00:38.6]} 32... Rc8 {[%clk 0:00:23.4]} 33.
b6 {[%clk 0:00:37.3]} 33... Rxc4 {[%clk 0:00:17.8]} 34. b7 {[%clk 0:00:37.1]}
34... Rb4 {[%clk 0:00:16.8]} 35. Rd8+ {[%clk 0:00:36.9]} 35... Kh7 {[%clk
0:00:17.2]} 36. b8=Q {[%clk 0:00:37.8]} 36... Rxb8 {[%clk 0:00:15.6]} 37. Rxb8
{[%clk 0:00:38.7]} 1-0

[Event "*** Titled Tuesday Blitz"]
[Site "Chess.com"]
[Date "2021.02.02"]
[Round "10"]
[White "Fortitudine"]
[Black "HrvojeZagreb"]
[Result "0-1"]
[WhiteElo "2327"]
[BlackElo "2238"]
[TimeControl "180+1"]
[EndTime "11:55:45 PST"]
[Termination "HrvojeZagreb won on time"]

1. c4 {[%clk 0:03:00.9]} 1... f5 {[%clk 0:02:59.2]} 2. g3 {[%clk 0:02:58.1]}
2... e5 {[%clk 0:02:57.5]} 3. Bg2 {[%clk 0:02:49.4]} 3... Nf6 {[%clk 0:02:57.1]}
4. Nc3 {[%clk 0:02:45.3]} 4... d6 {[%clk 0:02:56.5]} 5. d3 {[%clk 0:02:42.8]}
5... Be7 {[%clk 0:02:56.1]} 6. e3 {[%clk 0:02:42.3]} 6... O-O {[%clk 0:02:56]}
7. Nge2 {[%clk 0:02:42.4]} 7... Qe8 {[%clk 0:02:46.6]} 8. O-O {[%clk 0:02:40.4]}
8... Qh5 {[%clk 0:02:45.9]} 9. f4 {[%clk 0:02:34.3]} 9... Nc6 {[%clk 0:02:38.1]}
10. Nd5 {[%clk 0:02:19.2]} 10... Bd8 {[%clk 0:02:29.2]} 11. Nxf6+ {[%clk
0:01:49]} 11... Rxf6 {[%clk 0:02:22.8]} 12. Nc3 {[%clk 0:01:47.3]} 12... Qg6
{[%clk 0:02:14]} 13. Nd5 {[%clk 0:01:26.9]} 13... Rf8 {[%clk 0:02:13.5]} 14. b4
{[%clk 0:01:16]} 14... Ne7 {[%clk 0:02:11.6]} 15. Bb2 {[%clk 0:01:14.4]} 15...
c6 {[%clk 0:01:46.6]} 16. Nxe7+ {[%clk 0:01:11.4]} 16... Bxe7 {[%clk 0:01:47.5]}
17. fxe5 {[%clk 0:01:05.6]} 17... dxe5 {[%clk 0:01:48.4]} 18. Bxe5 {[%clk
0:01:04.4]} 18... Bxb4 {[%clk 0:01:48.3]} 19. Qb3 {[%clk 0:01:04.3]} 19... Be7
{[%clk 0:01:42]} 20. d4 {[%clk 0:00:58.9]} 20... Kh8 {[%clk 0:01:33.3]} 21. Rad1
{[%clk 0:00:54.9]} 21... Bd6 {[%clk 0:01:32.1]} 22. Bxd6 {[%clk 0:00:50.2]}
22... Qxd6 {[%clk 0:01:33]} 23. d5 {[%clk 0:00:50.7]} 23... c5 {[%clk
0:01:31.3]} 24. Qc3 {[%clk 0:00:46.3]} 24... Bd7 {[%clk 0:01:24.8]} 25. e4
{[%clk 0:00:43]} 25... fxe4 {[%clk 0:01:22.4]} 26. Bxe4 {[%clk 0:00:43.4]} 26...
Bh3 {[%clk 0:01:12.5]} 27. Bg2 {[%clk 0:00:43.2]} 27... Bxg2 {[%clk 0:01:04.4]}
28. Kxg2 {[%clk 0:00:44.1]} 28... h6 {[%clk 0:01:01.9]} 29. Rde1 {[%clk
0:00:41.3]} 29... Rxf1 {[%clk 0:00:53.9]} 30. Rxf1 {[%clk 0:00:39.8]} 30... Re8
{[%clk 0:00:48.5]} 0-1

[Event "*** Titled Tuesday Blitz"]
[Site "Chess.com"]
[Date "2021.02.02"]
[Round "10"]
[White "Man-Chuk"]
[Black "Blitzstream"]
[Result "1-0"]
[WhiteElo "2931"]
[BlackElo "2760"]
[TimeControl "180+1"]
[EndTime "11:55:49 PST"]
[Termination "Man-Chuk won by resignation"]

1. c4 {[%clk 0:03:00.9]} 1... c6 {[%clk 0:03:00.1]} 2. g3 {[%clk 0:02:57.8]}
2... d5 {[%clk 0:03:00.3]} 3. Bg2 {[%clk 0:02:58.1]} 3... Nf6 {[%clk 0:03:01]}
4. Nf3 {[%clk 0:02:57.1]} 4... Bf5 {[%clk 0:03:01]} 5. O-O {[%clk 0:02:42.9]}
5... e6 {[%clk 0:03:01.2]} 6. d3 {[%clk 0:02:41.5]} 6... dxc4 {[%clk 0:03:00.8]}
7. dxc4 {[%clk 0:02:41.7]} 7... Qxd1 {[%clk 0:03:01.5]} 8. Rxd1 {[%clk
0:02:42.5]} 8... Nbd7 {[%clk 0:03:01.8]} 9. Nc3 {[%clk 0:02:40.6]} 9... Bc2
{[%clk 0:02:54.8]} 10. Rd2 {[%clk 0:02:37.6]} 10... Bg6 {[%clk 0:02:55.4]} 11.
Nh4 {[%clk 0:02:27.7]} 11... Bb4 {[%clk 0:02:22.6]} 12. Nxg6 {[%clk 0:02:26.4]}
12... hxg6 {[%clk 0:02:23.5]} 13. Rc2 {[%clk 0:02:26.6]} 13... O-O-O {[%clk
0:02:07.6]} 14. a3 {[%clk 0:02:16.7]} 14... Bc5 {[%clk 0:01:59.9]} 15. Na4
{[%clk 0:01:54.2]} 15... Bd4 {[%clk 0:01:46.7]} 16. h3 {[%clk 0:01:40.7]} 16...
Nb6 {[%clk 0:01:03.8]} 17. Nxb6+ {[%clk 0:01:38.5]} 17... axb6 {[%clk
0:01:04.7]} 18. Bd2 {[%clk 0:01:24.3]} 18... Rd7 {[%clk 0:01:02.8]} 19. Kf1
{[%clk 0:01:19.1]} 19... Rhd8 {[%clk 0:00:59]} 20. Be1 {[%clk 0:01:19]} 20... g5
{[%clk 0:00:55.1]} 21. e3 {[%clk 0:01:17.9]} 21... Be5 {[%clk 0:00:53.5]} 22.
Ke2 {[%clk 0:01:18]} 22... Ne8 {[%clk 0:00:41.9]} 23. Rb1 {[%clk 0:01:02.4]}
23... f5 {[%clk 0:00:40.9]} 24. b4 {[%clk 0:01:00.3]} 24... Kc7 {[%clk 0:00:37]}
25. a4 {[%clk 0:00:57.4]} 25... Ra8 {[%clk 0:00:36.4]} 26. a5 {[%clk 0:00:57.7]}
26... Nf6 {[%clk 0:00:26.8]} 27. Ra2 {[%clk 0:00:55.2]} 27... bxa5 {[%clk
0:00:20.5]} 28. bxa5 {[%clk 0:00:56.1]} 28... Ne4 {[%clk 0:00:18.2]} 29. Bxe4
{[%clk 0:00:55.3]} 29... fxe4 {[%clk 0:00:18.5]} 30. Ra4 {[%clk 0:00:55.9]}
30... c5 {[%clk 0:00:12.8]} 31. Rb5 {[%clk 0:00:52.6]} 31... Bd6 {[%clk
0:00:12.7]} 32. Bc3 {[%clk 0:00:44.6]} 32... Rh8 {[%clk 0:00:12.3]} 33. a6
{[%clk 0:00:43.6]} 33... bxa6 {[%clk 0:00:11.4]} 34. Rxa6 {[%clk 0:00:43.8]}
34... Rxh3 {[%clk 0:00:11.3]} 35. Ba5+ {[%clk 0:00:43]} 35... Kc8 {[%clk
0:00:08.2]} 36. Ra8+ {[%clk 0:00:43.1]} 1-0

[Event "*** Titled Tuesday Blitz"]
[Site "Chess.com"]
[Date "2021.02.02"]
[Round "10"]
[White "ChampStan"]
[Black "zacachess"]
[Result "1-0"]
[WhiteElo "2202"]
[BlackElo "2424"]
[TimeControl "180+1"]
[EndTime "11:55:49 PST"]
[Termination "ChampStan won by checkmate"]

1. d4 {[%clk 0:03:00.9]} 1... Nf6 {[%clk 0:02:59.8]} 2. c4 {[%clk 0:02:59.7]}
2... g6 {[%clk 0:03:00]} 3. Nf3 {[%clk 0:02:59.1]} 3... Bg7 {[%clk 0:03:00.6]}
4. g3 {[%clk 0:02:59]} 4... O-O {[%clk 0:03:01.1]} 5. Bg2 {[%clk 0:02:57.6]}
5... d6 {[%clk 0:03:01.7]} 6. O-O {[%clk 0:02:56.9]} 6... Nc6 {[%clk 0:03:02.3]}
7. Nc3 {[%clk 0:02:57.4]} 7... a6 {[%clk 0:03:02.1]} 8. d5 {[%clk 0:02:57.7]}
8... Na5 {[%clk 0:03:01.6]} 9. b3 {[%clk 0:02:58.2]} 9... c5 {[%clk 0:03:02.1]}
10. dxc6 {[%clk 0:02:58.5]} 10... Nxc6 {[%clk 0:03:01.4]} 11. Bb2 {[%clk
0:02:59.2]} 11... h6 {[%clk 0:02:46.5]} 12. Qd2 {[%clk 0:02:58.6]} 12... Be6
{[%clk 0:02:43.9]} 13. Rfd1 {[%clk 0:02:44.2]} 13... Rb8 {[%clk 0:02:23.3]} 14.
Rac1 {[%clk 0:02:42.8]} 14... Nd7 {[%clk 0:02:09.1]} 15. Nd5 {[%clk 0:02:40.3]}
15... Nde5 {[%clk 0:02:02]} 16. Nxe5 {[%clk 0:02:34.3]} 16... dxe5 {[%clk
0:01:58.2]} 17. e3 {[%clk 0:02:30.4]} 17... f5 {[%clk 0:01:55.7]} 18. Ba3 {[%clk
0:02:26.1]} 18... Rf7 {[%clk 0:01:46.7]} 19. Qe2 {[%clk 0:02:17.6]} 19... Qa5
{[%clk 0:01:32]} 20. Bb2 {[%clk 0:02:10.8]} 20... e4 {[%clk 0:01:09.2]} 21. Bxg7
{[%clk 0:02:08.1]} 21... Kxg7 {[%clk 0:01:10.1]} 22. Qb2+ {[%clk 0:01:55]} 22...
Kh7 {[%clk 0:01:10.1]} 23. b4 {[%clk 0:01:55.5]} 23... Qa4 {[%clk 0:01:01.8]}
24. Nc7 {[%clk 0:01:52.6]} 24... Rf6 {[%clk 0:00:40.5]} 25. b5 {[%clk
0:01:38.6]} 25... Ne5 {[%clk 0:00:38.6]} 26. Qxe5 {[%clk 0:01:37]} 26... Bg8
{[%clk 0:00:29.8]} 27. Qxe7+ {[%clk 0:01:36.3]} 27... Rf7 {[%clk 0:00:30.1]} 28.
Qe5 {[%clk 0:01:34.3]} 28... Rc8 {[%clk 0:00:27]} 29. Nd5 {[%clk 0:01:17.4]}
29... Rxc4 {[%clk 0:00:26.8]} 30. Nf6+ {[%clk 0:01:16.9]} 30... Rxf6 {[%clk
0:00:25.8]} 31. Qxf6 {[%clk 0:01:17.3]} 31... Qxb5 {[%clk 0:00:16.8]} 32. Rxc4
{[%clk 0:01:11.8]} 32... Bxc4 {[%clk 0:00:17.7]} 33. Qe7+ {[%clk 0:01:09.9]}
33... Kh8 {[%clk 0:00:16.9]} 34. Rd8+ {[%clk 0:01:03.7]} 34... Bg8 {[%clk
0:00:16.5]} 35. Bf1 {[%clk 0:00:56.1]} 35... Qc6 {[%clk 0:00:10.8]} 36. Rd6
{[%clk 0:00:52]} 36... Qc5 {[%clk 0:00:06.9]} 37. Rd7 {[%clk 0:00:51.5]} 37...
Qc6 {[%clk 0:00:06.7]} 38. Qg7# {[%clk 0:00:50.8]} 1-0